[Event "Titled Tuesday Blitz August 08 Early 2023"]
[White "Saim, Mohamed Ilias"]
[Black "campochess"]
[WhiteFideId "7900465"]
[WhiteElo "1986"]
[BlackElo "2218"]
[Result "1-0"]
[Round "7"]
[TimeControl "180+1"]
[Date "2023.08.08"]
[WhiteClock "0:00:12"]
[BlackClock "0:00:58"]
[Board "215"]

1. c4 {[%clk 0:03:00]}  e6 {[%clk 0:02:59]} 2. g3 {[%clk 0:03:01]}  d5 {[%clk 0:02:58]} 3. Bg2 {[%clk 0:03:01]}  c6 {[%clk 0:02:58]} 4. Nf3 {[%clk 0:03:00]}  Nf6 {[%clk 0:02:58]} 5. O-O {[%clk 0:03:00]}  Nbd7 {[%clk 0:02:57]} 6. b3 {[%clk 0:03:00]}  Be7 {[%clk 0:02:57]} 7. Bb2 {[%clk 0:03:00]}  O-O {[%clk 0:02:57]} 8. d3 {[%clk 0:02:56]}  b5 {[%clk 0:02:55]} 9. cxb5 {[%clk 0:02:55]}  cxb5 {[%clk 0:02:54]} 10. Nbd2 {[%clk 0:02:54]}  Bb7 {[%clk 0:02:54]} 11. Rc1 {[%clk 0:02:53]}  Qb6 {[%clk 0:02:53]} 12. Qc2 {[%clk 0:02:37]}  Rac8 {[%clk 0:02:52]} 13. Qb1 {[%clk 0:02:37]}  Rxc1 {[%clk 0:02:47]} 14. Rxc1 {[%clk 0:02:36]}  Ng4 {[%clk 0:02:47]} 15. Bd4 {[%clk 0:02:30]}  Qd8 {[%clk 0:02:31]} 16. h3 {[%clk 0:02:26]}  Nh6 {[%clk 0:02:28]} 17. Bxa7 {[%clk 0:02:22]}  Nf5 {[%clk 0:02:27]} 18. g4 {[%clk 0:02:18]}  Qa5 {[%clk 0:02:25]} 19. gxf5 {[%clk 0:02:10]}  Qxa7 {[%clk 0:02:24]} 20. fxe6 {[%clk 0:02:08]}  fxe6 {[%clk 0:02:24]} 21. Rc7 {[%clk 0:02:02]}  Rd8 {[%clk 0:02:19]} 22. Ne5 {[%clk 0:01:46]}  Bd6 {[%clk 0:02:19]} 23. Rxd7 {[%clk 0:01:42]}  Rxd7 {[%clk 0:02:18]} 24. Nxd7 {[%clk 0:01:43]}  Bc6 {[%clk 0:02:13]} 25. e4 {[%clk 0:01:15]}  Bxd7 {[%clk 0:02:10]} 26. exd5 {[%clk 0:01:15]}  Qd4 {[%clk 0:02:04]} 27. dxe6 {[%clk 0:01:12]}  Bxe6 {[%clk 0:02:04]} 28. Nf3 {[%clk 0:01:11]}  Qc3 {[%clk 0:02:01]} 29. Ng5 {[%clk 0:01:03]}  Bf5 {[%clk 0:01:56]} 30. Bd5+ {[%clk 0:01:02]}  Kf8 {[%clk 0:01:56]} 31. Ne6+ {[%clk 0:00:53]}  Ke7 {[%clk 0:01:55]} 32. Ng5 {[%clk 0:00:48]}  Qe5 {[%clk 0:01:49]} 33. Bg2 {[%clk 0:00:27]}  Qe2 {[%clk 0:01:37]} 34. Ne4 {[%clk 0:00:20]}  Bf4 {[%clk 0:01:25]} 35. a4 {[%clk 0:00:19]}  Bc7 {[%clk 0:01:14]} 36. Qc1 {[%clk 0:00:18]}  Bb6 {[%clk 0:01:13]} 37. a5 {[%clk 0:00:16]}  Bxe4 {[%clk 0:01:06]} 38. Bxe4 {[%clk 0:00:14]}  Qxf2+ {[%clk 0:01:04]} 39. Kh1 {[%clk 0:00:13]}  Bxa5 {[%clk 0:01:03]} 40. Qc5+ {[%clk 0:00:12]}  Kf6 {[%clk 0:00:58]} 41. Qxf2+ {[%clk 0:00:12]} 1-0


[Site "https://www.chess.com"]

[Event "Titled Tuesday Blitz August 08 Early 2023"]
[White "cthake"]
[Black "Clawitter, Craig"]
[BlackFideId "2023105"]
[WhiteElo "1823"]
[BlackElo "2206"]
[Result "1/2-1/2"]
[Round "7"]
[TimeControl "180+1"]
[Date "2023.08.08"]
[WhiteClock "0:00:11"]
[BlackClock "0:00:02"]
[Board "216"]

1. e4 {[%clk 0:03:00]}  e6 {[%clk 0:01:23]} 2. d3 {[%clk 0:02:53]}  d5 {[%clk 0:01:23]} 3. Nd2 {[%clk 0:02:52]}  Nf6 {[%clk 0:01:23]} 4. e5 {[%clk 0:02:50]}  Nfd7 {[%clk 0:01:22]} 5. Ngf3 {[%clk 0:02:37]}  c5 {[%clk 0:01:20]} 6. g3 {[%clk 0:02:36]}  Nc6 {[%clk 0:01:20]} 7. Bg2 {[%clk 0:02:35]}  Ndxe5 {[%clk 0:01:20]} 8. O-O {[%clk 0:02:32]}  Bd6 {[%clk 0:01:14]} 9. Re1 {[%clk 0:02:31]}  O-O {[%clk 0:01:08]} 10. Nxe5 {[%clk 0:02:26]}  Nxe5 {[%clk 0:01:08]} 11. Nf3 {[%clk 0:02:23]}  Nxf3+ {[%clk 0:01:07]} 12. Qxf3 {[%clk 0:02:24]}  Bd7 {[%clk 0:01:05]} 13. c3 {[%clk 0:02:23]}  Bc6 {[%clk 0:00:59]} 14. d4 {[%clk 0:02:20]}  cxd4 {[%clk 0:00:58]} 15. cxd4 {[%clk 0:02:20]}  Qf6 {[%clk 0:00:49]} 16. Qxf6 {[%clk 0:02:18]}  gxf6 {[%clk 0:00:50]} 17. Bh6 {[%clk 0:02:12]}  Rfc8 {[%clk 0:00:50]} 18. a3 {[%clk 0:02:07]}  Rc7 {[%clk 0:00:41]} 19. b4 {[%clk 0:02:07]}  Rac8 {[%clk 0:00:40]} 20. Rac1 {[%clk 0:02:06]}  Bb5 {[%clk 0:00:28]} 21. Rxc7 {[%clk 0:02:05]}  Rxc7 {[%clk 0:00:28]} 22. Rc1 {[%clk 0:02:04]}  Rxc1+ {[%clk 0:00:20]} 23. Bxc1 {[%clk 0:02:04]}  Kf8 {[%clk 0:00:18]} 24. f4 {[%clk 0:02:03]}  Ke7 {[%clk 0:00:15]} 25. Kf2 {[%clk 0:02:02]}  Bc4 {[%clk 0:00:15]} 26. Ke3 {[%clk 0:02:01]}  e5 {[%clk 0:00:14]} 27. dxe5 {[%clk 0:01:50]}  fxe5 {[%clk 0:00:14]} 28. fxe5 {[%clk 0:01:43]}  Bxe5 {[%clk 0:00:15]} 29. Bf3 {[%clk 0:01:30]}  Kd6 {[%clk 0:00:14]} 30. Bh5 {[%clk 0:01:22]}  d4+ {[%clk 0:00:13]} 31. Kf2 {[%clk 0:01:18]}  d3 {[%clk 0:00:12]} 32. Bd2 {[%clk 0:01:16]}  Bb2 {[%clk 0:00:11]} 33. a4 {[%clk 0:01:14]}  Ke5 {[%clk 0:00:10]} 34. Bf3 {[%clk 0:01:06]}  b6 {[%clk 0:00:09]} 35. a5 {[%clk 0:01:02]}  Bd4+ {[%clk 0:00:09]} 36. Ke1 {[%clk 0:00:56]}  bxa5 {[%clk 0:00:08]} 37. bxa5 {[%clk 0:00:55]}  f5 {[%clk 0:00:08]} 38. h3 {[%clk 0:00:53]}  Bd5 {[%clk 0:00:08]} 39. Bd1 {[%clk 0:00:50]}  Be4 {[%clk 0:00:07]} 40. g4 {[%clk 0:00:47]}  Kd5 {[%clk 0:00:07]} 41. gxf5 {[%clk 0:00:47]}  Bxf5 {[%clk 0:00:07]} 42. h4 {[%clk 0:00:46]}  Kc4 {[%clk 0:00:06]} 43. h5 {[%clk 0:00:33]}  Bc3 {[%clk 0:00:06]} 44. h6 {[%clk 0:00:25]}  Bg6 {[%clk 0:00:06]} 45. Bf3 {[%clk 0:00:21]}  Be8 {[%clk 0:00:05]} 46. Be4 {[%clk 0:00:20]}  Bg6 {[%clk 0:00:05]} 47. Bf3 {[%clk 0:00:20]}  Kb3 {[%clk 0:00:04]} 48. Kd1 {[%clk 0:00:17]}  Kb2 {[%clk 0:00:05]} 49. Be3 {[%clk 0:00:16]}  Kb3 {[%clk 0:00:04]} 50. Bxa7 {[%clk 0:00:16]}  Bxa5 {[%clk 0:00:04]} 51. Be3 {[%clk 0:00:15]}  Kc3 {[%clk 0:00:04]} 52. Bg5 {[%clk 0:00:14]}  Kd4 {[%clk 0:00:04]} 53. Bc1 {[%clk 0:00:13]}  Bc7 {[%clk 0:00:04]} 54. Bg5 {[%clk 0:00:12]}  Be5 {[%clk 0:00:04]} 55. Bc1 {[%clk 0:00:11]}  Bg3 {[%clk 0:00:04]} 56. Bg5 {[%clk 0:00:11]}  Bf2 {[%clk 0:00:04]} 57. Kd2 {[%clk 0:00:10]}  Bf5 {[%clk 0:00:03]} 58. Bf4 {[%clk 0:00:10]}  Bg6 {[%clk 0:00:02]} 59. Bg5 {[%clk 0:00:10]}  Bg1 {[%clk 0:00:02]} 60. Bf4 {[%clk 0:00:10]}  Bf2 {[%clk 0:00:02]} 61. Bg5 {[%clk 0:00:11]} 1/2-1/2


[Site "https://www.chess.com"]

[Event "Titled Tuesday Blitz August 08 Early 2023"]
[White "Thiel, Thomas"]
[Black "Skiadopoulos, Nikolaos"]
[WhiteFideId "4615964"]
[BlackFideId "4200772"]
[WhiteElo "2196"]
[BlackElo "1878"]
[Result "1-0"]
[Round "7"]
[TimeControl "180+1"]
[Date "2023.08.08"]
[WhiteClock "0:00:41"]
[BlackClock "0:00:20"]
[Board "217"]

1. e4 {[%clk 0:03:00]}  c5 {[%clk 0:02:59]} 2. Nc3 {[%clk 0:02:59]}  Nc6 {[%clk 0:02:58]} 3. Bb5 {[%clk 0:02:59]}  Na5 {[%clk 0:02:56]} 4. Nf3 {[%clk 0:02:56]}  a6 {[%clk 0:02:55]} 5. Be2 {[%clk 0:02:55]}  Nc6 {[%clk 0:02:55]} 6. O-O {[%clk 0:02:55]}  e6 {[%clk 0:02:45]} 7. d4 {[%clk 0:02:54]}  cxd4 {[%clk 0:02:44]} 8. Nxd4 {[%clk 0:02:54]}  Nxd4 {[%clk 0:02:43]} 9. Qxd4 {[%clk 0:02:53]}  Ne7 {[%clk 0:02:44]} 10. e5 {[%clk 0:02:40]}  Nc6 {[%clk 0:02:45]} 11. Qf4 {[%clk 0:02:35]}  Be7 {[%clk 0:02:41]} 12. Qg3 {[%clk 0:02:34]}  Kf8 {[%clk 0:02:35]} 13. f4 {[%clk 0:02:31]}  g6 {[%clk 0:02:32]} 14. f5 {[%clk 0:02:24]}  exf5 {[%clk 0:02:30]} 15. Bh6+ {[%clk 0:02:22]}  Kg8 {[%clk 0:02:29]} 16. Nd5 {[%clk 0:02:12]}  Bh4 {[%clk 0:02:16]} 17. Qc3 {[%clk 0:01:59]}  Bg5 {[%clk 0:02:06]} 18. Nf6+ {[%clk 0:01:52]}  Bxf6 {[%clk 0:02:05]} 19. exf6 {[%clk 0:01:53]}  Qb6+ {[%clk 0:01:58]} 20. Kh1 {[%clk 0:01:51]}  Qd4 {[%clk 0:01:57]} 21. Qa3 {[%clk 0:01:36]}  Qb4 {[%clk 0:01:51]} 22. Qe3 {[%clk 0:01:35]}  Qe4 {[%clk 0:01:49]} 23. Qc5 {[%clk 0:01:30]}  d6 {[%clk 0:01:49]} 24. Qxd6 {[%clk 0:01:24]}  Be6 {[%clk 0:01:48]} 25. Bf3 {[%clk 0:01:24]}  Qd4 {[%clk 0:01:46]} 26. Qxd4 {[%clk 0:01:16]}  Nxd4 {[%clk 0:01:45]} 27. Bg7 {[%clk 0:01:15]}  Nxf3 {[%clk 0:01:22]} 28. Rxf3 {[%clk 0:01:16]}  h5 {[%clk 0:01:21]} 29. Bxh8 {[%clk 0:01:13]}  Kxh8 {[%clk 0:01:21]} 30. Rd3 {[%clk 0:01:08]}  Rc8 {[%clk 0:01:19]} 31. c3 {[%clk 0:01:08]}  g5 {[%clk 0:01:17]} 32. Rad1 {[%clk 0:01:01]}  Kh7 {[%clk 0:01:16]} 33. Rd8 {[%clk 0:01:00]}  Rxd8 {[%clk 0:01:09]} 34. Rxd8 {[%clk 0:01:01]}  Kg6 {[%clk 0:01:10]} 35. Rb8 {[%clk 0:00:57]}  Bd5 {[%clk 0:01:08]} 36. b3 {[%clk 0:00:57]}  Kxf6 {[%clk 0:01:07]} 37. c4 {[%clk 0:00:58]}  Bc6 {[%clk 0:01:07]} 38. Kg1 {[%clk 0:00:58]}  f4 {[%clk 0:01:06]} 39. Kf2 {[%clk 0:00:57]}  g4 {[%clk 0:01:04]} 40. a4 {[%clk 0:00:52]}  Kg7 {[%clk 0:00:55]} 41. a5 {[%clk 0:00:50]}  Kf6 {[%clk 0:00:53]} 42. b4 {[%clk 0:00:50]}  Kg7 {[%clk 0:00:49]} 43. b5 {[%clk 0:00:51]}  axb5 {[%clk 0:00:47]} 44. cxb5 {[%clk 0:00:51]}  Bxb5 {[%clk 0:00:47]} 45. Rxb7 {[%clk 0:00:52]}  Bd3 {[%clk 0:00:46]} 46. Rb6 {[%clk 0:00:47]}  h4 {[%clk 0:00:43]} 47. g3 {[%clk 0:00:46]}  fxg3+ {[%clk 0:00:42]} 48. hxg3 {[%clk 0:00:47]}  h3 {[%clk 0:00:41]} 49. Kg1 {[%clk 0:00:46]}  f5 {[%clk 0:00:37]} 50. Kh2 {[%clk 0:00:42]}  Kf7 {[%clk 0:00:20]} 51. a6 {[%clk 0:00:41]} 1-0


[Site "https://www.chess.com"]

[Event "Titled Tuesday Blitz August 08 Early 2023"]
[White "Stangl, Anita, Dr."]
[Black "Seifert, Henryk"]
[WhiteFideId "4608801"]
[BlackFideId "1100963"]
[WhiteElo "2097"]
[BlackElo "2034"]
[Result "1-0"]
[Round "7"]
[TimeControl "180+1"]
[Date "2023.08.08"]
[WhiteClock "0:02:14"]
[BlackClock "0:00:07"]
[Board "219"]

1. e4 {[%clk 0:03:00]}  e6 {[%clk 0:01:47]} 2. Nf3 {[%clk 0:02:58]}  d5 {[%clk 0:01:46]} 3. Nc3 {[%clk 0:02:59]}  Nf6 {[%clk 0:01:45]} 4. e5 {[%clk 0:02:58]}  Nfd7 {[%clk 0:01:45]} 5. d4 {[%clk 0:02:57]}  c5 {[%clk 0:01:45]} 6. Bb5 {[%clk 0:02:57]}  a6 {[%clk 0:01:45]} 7. Bxd7+ {[%clk 0:02:56]}  Bxd7 {[%clk 0:01:45]} 8. O-O {[%clk 0:02:57]}  Nc6 {[%clk 0:01:44]} 9. Be3 {[%clk 0:02:54]}  cxd4 {[%clk 0:01:42]} 10. Bxd4 {[%clk 0:02:52]}  Nxd4 {[%clk 0:01:37]} 11. Qxd4 {[%clk 0:02:50]}  Be7 {[%clk 0:01:34]} 12. Qg4 {[%clk 0:02:50]}  O-O {[%clk 0:01:33]} 13. Ne2 {[%clk 0:02:47]}  Bb5 {[%clk 0:01:30]} 14. Rfe1 {[%clk 0:02:43]}  Bxe2 {[%clk 0:01:26]} 15. Rxe2 {[%clk 0:02:43]}  Qb6 {[%clk 0:01:23]} 16. c3 {[%clk 0:02:41]}  Rac8 {[%clk 0:01:22]} 17. Nd4 {[%clk 0:02:38]}  Bc5 {[%clk 0:01:19]} 18. Rd1 {[%clk 0:02:31]}  h6 {[%clk 0:01:17]} 19. Rd3 {[%clk 0:02:28]}  Bxd4 {[%clk 0:01:04]} 20. Rxd4 {[%clk 0:02:28]}  Qb5 {[%clk 0:00:55]} 21. Red2 {[%clk 0:02:25]}  Rc4 {[%clk 0:00:51]} 22. f4 {[%clk 0:02:19]}  Rfc8 {[%clk 0:00:40]} 23. f5 {[%clk 0:02:18]}  exf5 {[%clk 0:00:34]} 24. Qxf5 {[%clk 0:02:15]}  Rxd4 {[%clk 0:00:07]} 25. Qxc8+ {[%clk 0:02:14]} 1-0


[Site "https://www.chess.com"]

[Event "Titled Tuesday Blitz August 08 Early 2023"]
[White "Nikulina, Alena"]
[Black "abelmat"]
[WhiteFideId "4172051"]
[WhiteElo "2042"]
[BlackElo "1910"]
[Result "1-0"]
[Round "7"]
[TimeControl "180+1"]
[Date "2023.08.08"]
[WhiteClock "0:00:05"]
[BlackClock "0:00:00"]
[Board "220"]

1. e4 {[%clk 0:02:33]}  e6 {[%clk 0:02:59]} 2. d4 {[%clk 0:02:32]}  d5 {[%clk 0:03:00]} 3. exd5 {[%clk 0:02:32]}  exd5 {[%clk 0:03:00]} 4. c4 {[%clk 0:02:32]}  Nf6 {[%clk 0:03:00]} 5. Nc3 {[%clk 0:02:32]}  Bb4 {[%clk 0:03:01]} 6. Nf3 {[%clk 0:02:31]}  O-O {[%clk 0:03:01]} 7. Bd3 {[%clk 0:02:31]}  dxc4 {[%clk 0:02:59]} 8. Bxc4 {[%clk 0:02:31]}  Re8+ {[%clk 0:02:59]} 9. Be3 {[%clk 0:02:31]}  Bg4 {[%clk 0:02:54]} 10. O-O {[%clk 0:02:04]}  Nc6 {[%clk 0:02:51]} 11. Qb3 {[%clk 0:01:21]}  Bh5 {[%clk 0:02:47]} 12. Ng5 {[%clk 0:01:08]}  Qe7 {[%clk 0:02:27]} 13. a3 {[%clk 0:00:58]}  Bd6 {[%clk 0:02:15]} 14. Qxb7 {[%clk 0:00:48]}  Na5 {[%clk 0:02:10]} 15. Qb5 {[%clk 0:00:44]}  Nxc4 {[%clk 0:01:57]} 16. Qxc4 {[%clk 0:00:44]}  h6 {[%clk 0:01:51]} 17. Nh3 {[%clk 0:00:41]}  Ng4 {[%clk 0:01:44]} 18. Rfe1 {[%clk 0:00:22]}  Bxh2+ {[%clk 0:01:27]} 19. Kh1 {[%clk 0:00:22]}  Qh4 {[%clk 0:01:15]} 20. Nd5 {[%clk 0:00:14]}  Nxe3 {[%clk 0:01:02]} 21. Rxe3 {[%clk 0:00:12]}  Rxe3 {[%clk 0:00:59]} 22. fxe3 {[%clk 0:00:13]}  Bg3 {[%clk 0:00:52]} 23. Qf1 {[%clk 0:00:10]}  Bg4 {[%clk 0:00:50]} 24. Nf4 {[%clk 0:00:10]}  g5 {[%clk 0:00:49]} 25. Nd5 {[%clk 0:00:08]}  Bxh3 {[%clk 0:00:46]} 26. gxh3 {[%clk 0:00:08]}  g4 {[%clk 0:00:36]} 27. Nf6+ {[%clk 0:00:08]}  Kf8 {[%clk 0:00:27]} 28. Nxg4 {[%clk 0:00:08]}  Re8 {[%clk 0:00:26]} 29. Qf3 {[%clk 0:00:07]}  h5 {[%clk 0:00:21]} 30. Kg2 {[%clk 0:00:07]}  hxg4 {[%clk 0:00:20]} 31. Qxg4 {[%clk 0:00:07]}  Qxg4 {[%clk 0:00:19]} 32. hxg4 {[%clk 0:00:07]}  Rxe3 {[%clk 0:00:17]} 33. Rc1 {[%clk 0:00:08]}  Bd6 {[%clk 0:00:16]} 34. b4 {[%clk 0:00:07]}  Rxa3 {[%clk 0:00:16]} 35. b5 {[%clk 0:00:07]}  Ra2+ {[%clk 0:00:15]} 36. Kf3 {[%clk 0:00:07]}  Rd2 {[%clk 0:00:14]} 37. Ke3 {[%clk 0:00:07]}  Rg2 {[%clk 0:00:14]} 38. Ra1 {[%clk 0:00:06]}  Rg3+ {[%clk 0:00:12]} 39. Ke4 {[%clk 0:00:06]}  Rxg4+ {[%clk 0:00:12]} 40. Kd5 {[%clk 0:00:06]}  Rg5+ {[%clk 0:00:11]} 41. Kc6 {[%clk 0:00:06]}  Rg4 {[%clk 0:00:10]} 42. d5 {[%clk 0:00:06]}  Rc4+ {[%clk 0:00:08]} 43. Kd7 {[%clk 0:00:06]}  Rb4 {[%clk 0:00:07]} 44. Rxa7 {[%clk 0:00:06]}  Rxb5 {[%clk 0:00:07]} 45. Kc6 {[%clk 0:00:06]}  Rc5+ {[%clk 0:00:07]} 46. Kd7 {[%clk 0:00:06]}  Rxd5 {[%clk 0:00:08]} 47. Ra8+ {[%clk 0:00:06]}  Kg7 {[%clk 0:00:08]} 48. Kc6 {[%clk 0:00:07]}  Rg5 {[%clk 0:00:07]} 49. Re8 {[%clk 0:00:07]}  f5 {[%clk 0:00:06]} 50. Re1 {[%clk 0:00:05]}  Kf6 {[%clk 0:00:06]} 51. Kd5 {[%clk 0:00:05]}  Rg4 {[%clk 0:00:06]} 52. Rh1 {[%clk 0:00:04]}  f4 {[%clk 0:00:04]} 53. Ke4 {[%clk 0:00:04]}  Rg6 {[%clk 0:00:02]} 54. Kf3 {[%clk 0:00:04]}  Rg3+ {[%clk 0:00:02]} 55. Ke4 {[%clk 0:00:05]}  Re3+ {[%clk 0:00:00]} 56. Kd4 {[%clk 0:00:05]} 1-0


[Site "https://www.chess.com"]

[Event "Titled Tuesday Blitz August 08 Early 2023"]
[White "Lazavik, Denis"]
[Black "Alekseev, Evgeny"]
[WhiteFideId "13515110"]
[BlackFideId "4138147"]
[WhiteElo "3047"]
[BlackElo "2963"]
[Result "1-0"]
[Round "8"]
[TimeControl "180+1"]
[Date "2023.08.08"]
[WhiteClock "0:00:09"]
[BlackClock "0:00:00"]
[Board "4"]

1. d4 {[%clk 0:03:00]}  Nf6 {[%clk 0:02:59]} 2. c4 {[%clk 0:03:01]}  e6 {[%clk 0:02:59]} 3. Nf3 {[%clk 0:03:01]}  d5 {[%clk 0:03:00]} 4. Nc3 {[%clk 0:03:01]}  Bb4 {[%clk 0:03:00]} 5. Bg5 {[%clk 0:03:00]}  Nbd7 {[%clk 0:02:58]} 6. e3 {[%clk 0:02:59]}  c5 {[%clk 0:02:57]} 7. cxd5 {[%clk 0:02:58]}  exd5 {[%clk 0:02:58]} 8. dxc5 {[%clk 0:02:58]}  Qa5 {[%clk 0:02:56]} 9. Rc1 {[%clk 0:02:54]}  O-O {[%clk 0:02:50]} 10. Bd3 {[%clk 0:02:35]}  Ne4 {[%clk 0:02:39]} 11. O-O {[%clk 0:02:20]}  Bxc3 {[%clk 0:02:34]} 12. bxc3 {[%clk 0:02:20]}  Ndxc5 {[%clk 0:02:31]} 13. Be7 {[%clk 0:02:17]}  Re8 {[%clk 0:02:28]} 14. Bxc5 {[%clk 0:02:16]}  Nxc5 {[%clk 0:02:20]} 15. Bb1 {[%clk 0:02:16]}  Rd8 {[%clk 0:01:58]} 16. Qd4 {[%clk 0:01:56]}  Be6 {[%clk 0:01:49]} 17. Qh4 {[%clk 0:01:55]}  h6 {[%clk 0:01:45]} 18. Nd4 {[%clk 0:01:55]}  Rac8 {[%clk 0:01:35]} 19. f4 {[%clk 0:01:52]}  Bd7 {[%clk 0:01:33]} 20. Rf3 {[%clk 0:01:44]}  Qb6 {[%clk 0:01:25]} 21. Rg3 {[%clk 0:01:39]}  Kf8 {[%clk 0:01:25]} 22. Bf5 {[%clk 0:01:24]}  Ne4 {[%clk 0:00:33]} 23. Bxe4 {[%clk 0:01:06]}  dxe4 {[%clk 0:00:32]} 24. f5 {[%clk 0:01:06]}  Re8 {[%clk 0:00:24]} 25. Rg4 {[%clk 0:00:54]}  Qf6 {[%clk 0:00:23]} 26. Qxf6 {[%clk 0:00:31]}  gxf6 {[%clk 0:00:23]} 27. Rh4 {[%clk 0:00:31]}  Kg7 {[%clk 0:00:24]} 28. Kf2 {[%clk 0:00:31]}  Rc5 {[%clk 0:00:23]} 29. Rg4+ {[%clk 0:00:31]}  Kh7 {[%clk 0:00:22]} 30. Rf4 {[%clk 0:00:31]}  b5 {[%clk 0:00:19]} 31. Rc2 {[%clk 0:00:30]}  Rc4 {[%clk 0:00:17]} 32. Ne2 {[%clk 0:00:24]}  Re5 {[%clk 0:00:15]} 33. g4 {[%clk 0:00:22]}  b4 {[%clk 0:00:13]} 34. Rd2 {[%clk 0:00:22]}  Bb5 {[%clk 0:00:08]} 35. cxb4 {[%clk 0:00:20]}  Rxb4 {[%clk 0:00:09]} 36. Nd4 {[%clk 0:00:13]}  Ra4 {[%clk 0:00:04]} 37. Kg3 {[%clk 0:00:09]}  Bd3 {[%clk 0:00:03]} 38. Rff2 {[%clk 0:00:09]}  Rc5 {[%clk 0:00:02]} 39. Kf4 {[%clk 0:00:09]}  Kg7 {[%clk 0:00:02]} 40. Rb2 {[%clk 0:00:09]}  Rc1 {[%clk 0:00:02]} 41. Rb7 {[%clk 0:00:09]}  Rg1 {[%clk 0:00:02]} 42. Ne6+ {[%clk 0:00:08]}  Kg8 {[%clk 0:00:02]} 43. Rb8+ {[%clk 0:00:09]}  Kh7 {[%clk 0:00:02]} 44. Nc5 {[%clk 0:00:09]}  Ra5 {[%clk 0:00:01]} 45. Nd7 {[%clk 0:00:09]}  Kg7 {[%clk 0:00:00]} 46. Rb7 {[%clk 0:00:09]} 1-0


[Site "https://www.chess.com"]

[Event "Titled Tuesday Blitz August 08 Early 2023"]
[White "Sjugirov, Sanan"]
[Black "Tabatabaei, M. Amin"]
[WhiteFideId "4189302"]
[BlackFideId "12521213"]
[WhiteElo "2933"]
[BlackElo "3021"]
[Result "1-0"]
[Round "8"]
[TimeControl "180+1"]
[Date "2023.08.08"]
[WhiteClock "0:00:09"]
[BlackClock "0:00:06"]
[Board "6"]

1. e4 {[%clk 0:03:00]}  c5 {[%clk 0:03:00]} 2. Nf3 {[%clk 0:03:01]}  d6 {[%clk 0:03:01]} 3. d4 {[%clk 0:02:58]}  cxd4 {[%clk 0:03:02]} 4. Nxd4 {[%clk 0:02:59]}  Nf6 {[%clk 0:03:02]} 5. Nc3 {[%clk 0:02:59]}  Nc6 {[%clk 0:03:03]} 6. Bg5 {[%clk 0:02:58]}  e6 {[%clk 0:03:03]} 7. Qd2 {[%clk 0:02:43]}  a6 {[%clk 0:03:04]} 8. O-O-O {[%clk 0:02:42]}  Be7 {[%clk 0:03:04]} 9. Nxc6 {[%clk 0:02:22]}  bxc6 {[%clk 0:03:04]} 10. Bxf6 {[%clk 0:02:22]}  gxf6 {[%clk 0:03:04]} 11. Bc4 {[%clk 0:02:20]}  Rb8 {[%clk 0:03:04]} 12. Bb3 {[%clk 0:02:19]}  Rg8 {[%clk 0:02:52]} 13. f4 {[%clk 0:02:18]}  Qb6 {[%clk 0:02:43]} 14. Kb1 {[%clk 0:02:14]}  a5 {[%clk 0:02:42]} 15. Rhe1 {[%clk 0:02:06]}  Qc5 {[%clk 0:02:27]} 16. g3 {[%clk 0:01:58]}  h5 {[%clk 0:02:07]} 17. f5 {[%clk 0:01:48]}  h4 {[%clk 0:01:45]} 18. gxh4 {[%clk 0:01:41]}  Rh8 {[%clk 0:01:39]} 19. fxe6 {[%clk 0:01:31]}  Bxe6 {[%clk 0:01:24]} 20. Ne2 {[%clk 0:01:24]}  a4 {[%clk 0:00:50]} 21. Bxa4 {[%clk 0:01:07]}  Ra8 {[%clk 0:00:40]} 22. Bb3 {[%clk 0:01:03]}  Kd7 {[%clk 0:00:41]} 23. Nd4 {[%clk 0:01:01]}  Rxh4 {[%clk 0:00:40]} 24. Qe2 {[%clk 0:00:34]}  Rhh8 {[%clk 0:00:28]} 25. Rd3 {[%clk 0:00:22]}  Qe5 {[%clk 0:00:27]} 26. Nf3 {[%clk 0:00:19]}  Qa5 {[%clk 0:00:26]} 27. a3 {[%clk 0:00:16]}  c5 {[%clk 0:00:25]} 28. Nd2 {[%clk 0:00:10]}  Qb5 {[%clk 0:00:15]} 29. Rxd6+ {[%clk 0:00:10]}  Bxd6 {[%clk 0:00:11]} 30. Qxb5+ {[%clk 0:00:10]}  Ke7 {[%clk 0:00:12]} 31. Bxe6 {[%clk 0:00:08]}  fxe6 {[%clk 0:00:06]} 32. Qb7+ {[%clk 0:00:09]} 1-0


[Site "https://www.chess.com"]